bitfinex-derivatives/quotes_ETHF0:USTF0_20250616
["timestamp","ask_amount","ask_price","bid_price","bid_amount"]
[1750116746058,0.7752,2578.8,2578.1,18.36826871]
[1750116746259,0.7752,2578.8,2578.0,1.94433377]
[1750116746260,3.98293,2579.0,2578.8,0.77518]
[1750116746560,3.2078,2579.0,2578.9,13.99717871]
[1750116746956,3.2078,2579.0,2578.9,54.79717871]
[1750116747158,3.2078,2579.0,2578.9,54.02202871]
[1750116747360,3.2078,2579.0,2578.9,54.79717871]
[1750116747761,3.2078,2579.0,2578.9,13.99717871]
[1750116748563,6.40654267,2579.1,2579.0,0.77512]
[1750116748865,26.73309,2579.1,2579.0,13.22202871]
[1750116749063,25.958,2579.1,2579.0,13.22202871]
[1750116749261,26.73309,2579.1,2578.9,0.77513]
[1750116749467,26.73309,2579.1,2579.0,13.22202871]
[1750116749769,25.958,2579.1,2579.0,13.99714871]
[1750116749967,26.73309,2579.1,2578.9,0.77513]
[1750116750162,26.73309,2579.1,2579.0,13.22202871]
[1750116750368,26.73309,2579.1,2578.8,3.2078]
[1750116750369,0.77515,2578.9,2578.8,3.2078]
[1750116750666,0.77527,2578.5,2578.4,3.2078]
[1750116750867,32.98835824,2578.5,2578.4,16.42982871]
[1750116751064,32.21308824,2578.5,2578.0,13.05173377]
[1750116751269,26.7243,2578.4,2578.3,13.22202871]
[1750116751465,25.949,2578.4,2578.3,13.99735871]
[1750116751664,25.948,2578.4,2578.3,13.99735871]
[1750116751860,137.29136,2578.6,2578.5,0.77527]
[1750116752068,137.29136,2578.6,2578.5,13.99729871]
[1750116752971,111.34336,2578.6,2578.5,13.99729871]
[1750116753369,111.34336,2578.6,2578.5,18.99729871]
[1750116754274,111.34336,2578.6,2578.5,13.22202871]
[1750116754480,147.80526441,2578.6,2578.0,4.76532377]
[1750116754778,0.77539,2578.1,2578.0,0.00582377]
[1750116754975,26.71439,2578.1,2578.0,0.00582377]
[1750116755179,31.98925842,2578.1,2577.3,56.1604]
[1750116755374,6.26208824,2577.8,2577.5,13.22202871]
[1750116755574,0.77554,2577.6,2577.5,13.22202871]
[1750116755774,0.77558,2577.5,2577.3,10.7188]
[1750116755980,25.936,2577.4,2577.3,11.49442]
[1750116756280,26.7116,2577.4,2577.3,10.7188]
[1750116756478,26.7116,2577.4,2577.3,23.94082871]
[1750116756679,26.7116,2577.4,2577.3,20.73302871]
[1750116757977,26.7116,2577.4,2577.3,7.511]
[1750116758178,25.936,2577.4,2577.1,0.00582377]
[1750116758675,0.00582377,2577.6,2577.5,0.77557]
[1750116758874,0.00582377,2577.6,2577.5,21.46559871]
[1750116759274,25.931,2577.9,2577.5,12.468]
[1750116759481,25.931,2577.9,2577.8,13.22202871]
[1750116759684,26.70645,2577.9,2577.8,13.22202871]
[1750116759879,25.931,2577.9,2577.8,14.65992871]
[1750116760072,25.929,2577.9,2577.8,14.65992871]
[1750116760278,25.929,2577.9,2577.8,16.92310871]
[1750116760577,0.00582377,2578.1,2577.8,16.14762871]
[1750116760882,25.93282377,2578.1,2578.0,13.22202871]
[1750116761082,25.93282377,2578.1,2578.0,14.65992871]
[1750116761286,25.93282377,2578.1,2578.0,15.43534871]
[1750116761582,25.93282377,2578.1,2577.8,2.26318]
[1750116761780,0.77542,2578.0,2577.9,14.65992871]
[1750116761989,0.77542,2578.0,2577.0,1.93928]
[1750116761990,3.2078,2578.0,2577.2,41.57565]
[1750116762277,3.2078,2578.0,2577.5,13.22202871]
[1750116762278,0.77554,2577.6,2577.5,13.22202871]
[1750116762485,25.925,2577.6,2577.3,13.22202871]
[1750116762673,25.925,2577.6,2577.4,13.22202871]
[1750116762874,6.26208824,2577.7,2577.5,13.22202871]
[1750116763072,26.69954,2577.6,2577.5,13.22202871]
[1750116764483,25.924,2577.6,2577.5,13.22202871]
[1750116764686,25.924,2577.6,2577.3,1.4717]
[1750116764889,0.7756,2577.4,2577.3,13.22202871]
[1750116765091,0.77566,2577.2,2577.1,4.70132377]
[1750116765392,25.92,2577.2,2577.1,16.43565248]
[1750116765577,25.92,2577.2,2577.1,17.21134248]
[1750116765980,3.2078,2577.7,2577.1,17.21134248]
[1750116765981,9.46988824,2577.7,2577.1,16.43565248]
[1750116766280,26.69456,2577.6,2577.5,13.22202871]
[1750116766479,0.77566,2577.2,2577.1,0.00582377]
[1750116766689,26.69466,2577.2,2577.1,0.00582377]
[1750116767687,31.69466,2577.2,2577.1,0.00582377]
[1750116768188,26.69466,2577.2,2577.1,0.00582377]
[1750116768389,4.25322959,2578.0,2577.1,17.21132248]
[1750116768390,6.26208824,2577.6,2577.1,17.21132248]
[1750116768590,6.26208824,2577.6,2577.3,13.22202871]
[1750116768591,0.7756,2577.4,2577.3,13.22202871]
[1750116768791,0.77557,2577.5,2577.3,13.22202871]
[1750116769087,25.915,2577.4,2577.3,13.22202871]
[1750116769286,26.6906,2577.4,2577.3,13.22202871]
[1750116769992,42.64124498,2577.4,2576.7,0.77579]
[1750116770287,0.7757,2577.1,2576.9,8.52952871]
[1750116770591,6.26208824,2577.5,2577.1,8.52952871]
[1750116770892,0.77568,2577.2,2577.1,8.52952871]
[1750116771883,26.68568,2577.2,2577.1,8.52952871]
[1750116772084,26.68468,2577.2,2577.1,8.52952871]
[1750116772286,6.26208824,2577.5,2577.1,11.73732871]
[1750116772487,3.2078,2577.6,2577.4,8.52952871]
[1750116772695,1.94436377,2578.1,2577.5,16.00052871]
[1750116772696,3.2078,2577.9,2577.5,16.00052871]
[1750116772887,0.78122377,2578.1,2577.9,8.52952871]
[1750116773087,25.909,2578.0,2577.9,8.52952871]
[1750116773383,0.00582377,2578.1,2578.0,8.52952871]
[1750116773695,25.908,2578.3,2578.0,16.00052871]
[1750116773884,25.908,2578.3,2578.2,8.52952871]
[1750116774280,25.907,2578.4,2578.2,10.09332871]
[1750116774485,0.77533,2578.3,2578.2,1.5638]
[1750116774993,0.77533,2578.3,2578.2,10.09332871]
[1750116776195,6.26208824,2578.4,2578.2,10.09332871]
[1750116776491,25.901,2578.4,2578.3,8.52952871]
[1750116776691,0.00582377,2578.5,2578.3,8.52952871]
[1750116776888,25.90582377,2578.5,2578.4,10.06012871]
[1750116778290,26.68109377,2578.5,2578.4,10.06012871]
[1750116778493,26.68109377,2578.5,2578.4,1.5306]
[1750116779400,26.68109377,2578.5,2577.8,8.24547]
[1750116779401,30.90582377,2578.5,2577.8,8.24547]
[1750116779598,0.77544,2578.0,2577.9,8.52952871]
[1750116779804,0.77548,2577.8,2577.7,3.2078]
[1750116780006,0.77548,2577.8,2577.5,1.5035]
[1750116780007,0.77554,2577.6,2577.5,1.5035]
[1750116780301,0.7756,2577.4,2577.3,3.2078]
[1750116780503,0.77558,2577.5,2577.4,8.52952871]
[1750116781001,25.892,2577.6,2577.4,9.30510871]
[1750116781188,0.7756,2577.4,2577.3,3.2078]
[1750116781595,0.7756,2577.4,2577.3,11.73732871]
[1750116782003,7.03768824,2577.4,2577.3,3.2078]
[1750116783104,3.2078,2577.7,2577.3,11.73732871]
[1750116783297,25.891,2577.6,2577.5,8.52952871]
[1750116783602,26.66654,2577.6,2577.5,8.52952871]
[1750116784209,25.891,2577.6,2577.5,8.52952871]
[1750116784401,3.2078,2577.7,2577.5,8.52952871]
[1750116784600,3.98331,2577.7,2577.6,8.52952871]
[1750116784905,29.86931,2577.7,2577.6,8.52952871]
[1750116785505,3.2078,2577.1,2575.7,1.57954643]
[1750116785707,9.46988824,2575.8,2575.1,0.3879]
[1750116785904,7.03834824,2575.2,2575.1,0.3879]
[1750116786105,32.97134824,2575.2,2575.1,0.3879]
[1750116786311,37.19508824,2575.2,2574.4,48.27]
[1750116786499,3.2078,2574.9,2574.5,0.08350875]
[1750116786701,6.26208824,2574.6,2574.5,0.08350875]
[1750116788501,25.946,2574.8,2574.5,0.08350875]
[1750116788502,9.46988824,2574.9,2574.5,0.00582377]
[1750116788705,0.77644,2574.6,2574.5,0.00582377]
[1750116788901,26.7114,2574.8,2574.5,0.00582377]
[1750116789314,26.7114,2574.8,2574.5,1.47672377]
[1750116789621,6.26208824,2574.6,2574.5,1.47672377]
[1750116789812,0.77648,2574.5,2573.8,3.2078]
[1750116790011,6.26208824,2574.3,2574.0,1.4709]
[1750116790206,6.26208824,2574.3,2574.0,2.24751]
[1750116790916,6.26208824,2574.3,2574.0,1.4709]
[1750116791110,6.26208824,2574.3,2574.0,2.24752]
[1750116791315,6.26208824,2574.3,2574.1,0.77659]
[1750116791513,6.26208824,2574.3,2574.2,1.4709]
[1750116793223,6.26208824,2574.3,2574.2,2.24746]
[1750116793425,6.26208824,2574.3,2574.2,1.4709]
[1750116794529,6.26208824,2574.3,2574.2,2.24746]
[1750116794923,6.26208824,2574.3,2574.2,1.4709]
[1750116795128,6.26208824,2574.3,2573.9,40.80582377]
[1750116795129,0.77662,2574.0,2573.9,0.00582377]
[1750116795331,36.15150824,2574.0,2573.9,0.00582377]
[1750116795532,48.60250824,2574.0,2573.9,0.00582377]
[1750116796228,48.60750824,2574.0,2573.9,0.00582377]
[1750116797231,49.77250824,2574.0,2573.2,40.8]
[1750116797436,3.2078,2573.3,2573.1,8.22889]
[1750116797732,25.909,2573.2,2573.1,8.9014]
[1750116798034,25.909,2573.2,2573.1,49.7014]
[1750116798235,25.909,2573.2,2573.1,9.6783]
[1750116798739,25.909,2573.2,2572.9,0.00582377]
[1750116798931,9.46988824,2573.0,2572.9,0.00582377]
[1750116799435,10.24681824,2573.0,2572.9,0.00582377]
[1750116801022,9.46988824,2573.0,2572.9,0.00582377]
[1750116801327,10.24681824,2573.0,2572.9,0.00582377]
[1750116801532,10.24681824,2573.0,2572.5,8.23106]
[1750116801533,9.46988824,2573.0,2572.1,10.6618]
[1750116801828,9.46988824,2573.0,2572.4,3.2078]
[1750116801829,25.913,2572.9,2572.4,3.2078]
[1750116802030,0.77689,2573.2,2572.7,3.2078]
[1750116802230,6.26208824,2573.1,2572.8,8.859]
[1750116802442,6.26208824,2573.1,2573.0,0.77693]
[1750116802630,6.26208824,2573.1,2572.8,0.00388254]
[1750116802939,3.2078,2572.9,2572.8,0.00388254]
[1750116803236,3.98476,2572.9,2572.8,0.00388254]
[1750116803830,29.90276,2572.9,2572.8,0.00388254]
[1750116804630,29.90176,2572.9,2572.8,0.00388254]
[1750116804933,3.98476,2572.9,2572.8,0.00388254]
[1750116805133,29.90176,2572.9,2572.8,0.00388254]
[1750116805432,29.1248,2572.9,2572.8,0.00388254]
[1750116805629,3.2078,2572.9,2572.8,0.78087254]
[1750116805831,25.917,2572.9,2572.8,0.78087254]
[1750116806137,6.26208824,2573.1,2573.0,0.77693]
[1750116806436,32.95900824,2573.1,2572.8,2.24535254]
[1750116806632,32.18208824,2573.1,2572.8,1.46838254]
[1750116806832,9.46988824,2573.3,2572.5,3.2078]
[1750116807035,3.2078,2572.6,2571.7,5.15111]
[1750116807335,6.26208824,2572.1,2571.8,2.8887]
[1750116807632,6.26208824,2571.9,2571.8,2.8887]
[1750116808132,6.26208824,2571.9,2571.8,3.66599]
[1750116808337,3.2078,2572.0,2571.8,2.8887]
[1750116808531,3.2078,2572.0,2571.9,0.77726]
[1750116808737,3.2078,2572.0,2571.9,2.18706]
[1750116809132,26.079,2572.4,2572.3,0.77714]
[1750116809335,9.46988824,2572.5,2572.4,0.77711]
[1750116809636,9.46988824,2572.5,2572.3,0.77712]
[1750116810138,0.00582377,2572.7,2572.4,1.4098]
[1750116810441,0.00582377,2572.7,2572.6,3.98485]
[1750116810938,0.00582377,2572.7,2572.6,5.45055]
[1750116811139,0.00582377,2572.7,2572.6,2.24275]
[1750116811737,7.04493201,2572.7,2572.6,1.4657]
[1750116812442,6.26791201,2572.7,2572.6,1.4657]
[1750116812739,7.04493201,2572.7,2572.6,8.9237]
[1750116812937,0.7771,2572.5,2572.2,0.77714]
[1750116813236,6.26208824,2572.3,2572.2,2.24287]
[1750116813431,0.00582377,2572.7,2572.2,1.4657]
[1750116813743,0.00582377,2572.7,2572.4,3.2078]
[1750116813934,6.26208824,2572.6,2572.5,7.7829]
[1750116814134,7.03913824,2572.6,2572.5,0.3249]
[1750116815034,0.00582377,2572.7,2572.6,0.77705]
[1750116815234,0.00582377,2572.7,2572.5,0.3249]
[1750116815436,6.26208824,2572.6,2572.5,0.3249]
[1750116815640,6.26208824,2572.6,2572.5,1.10198]
[1750116816934,0.00582377,2572.7,2572.6,0.77705]
[1750116817140,0.00582377,2572.7,2572.6,3.80405]
[1750116818242,0.00582377,2572.7,2572.6,11.26305]
[1750116818940,0.00582377,2572.7,2572.6,16.26305]
[1750116819240,0.00582377,2572.7,2572.6,11.26305]
[1750116819943,0.78284377,2572.7,2572.6,10.486]
[1750116820142,0.00582377,2572.7,2572.6,10.486]
[1750116820344,1.08322796,2572.7,2572.6,11.26305]
[1750116820838,1.08322796,2572.7,2572.6,3.027]
[1750116820839,1.86024796,2572.7,2572.6,3.027]
[1750116821037,1.08322796,2572.7,2571.9,3.2078]
[1750116821237,6.26208824,2572.3,2572.2,0.77717]
[1750116821437,7.33949243,2572.3,2572.2,8.27517]
[1750116821632,7.33949243,2572.3,2572.2,7.498]
[1750116821837,7.33949243,2572.3,2572.2,8.27517]
[1750116822240,9.46988824,2572.6,2572.5,0.77708]
[1750116822446,10.54587486,2572.6,2572.5,0.77708]
[1750116823142,0.77712,2572.4,2572.2,0.77716]
[1750116823443,10.24694824,2572.6,2572.4,0.77711]
[1750116823643,1.07697449,2572.5,2572.3,7.498]
[1750116823944,10.24694824,2572.6,2572.4,0.77711]
[1750116824138,1.07697181,2572.5,2572.4,0.77711]
[1750116824336,1.07697181,2572.5,2572.3,8.27512]
[1750116824538,1.07697181,2572.4,2572.3,7.498]
[1750116825045,1.07697181,2572.4,2572.1,3.0275]
[1750116825046,0.77714,2572.3,2572.1,3.80469]
[1750116825234,0.77712,2572.4,2572.2,8.27517]
[1750116825440,7.34083644,2572.3,2572.2,8.27517]
[1750116825641,8.11797644,2572.3,2572.2,7.498]
[1750116826341,7.03922824,2572.3,2572.2,7.498]
[1750116827151,8.1167265,2572.3,2572.2,7.498]
[1750116827440,7.3395865,2572.3,2572.2,0.77717]
[1750116827644,7.3395865,2572.3,2572.2,8.27617]
[1750116827944,7.3395865,2572.3,2572.2,9.67727]
[1750116828444,1.07749826,2572.3,2572.2,9.67727]
[1750116829239,0.00582377,2572.7,2572.6,0.77705]
[1750116829445,0.00582377,2572.7,2572.6,8.27605]
[1750116829940,0.78284377,2572.7,2572.6,7.499]
[1750116830541,0.00582377,2572.7,2572.6,7.499]
[1750116830836,0.00582377,2572.7,2572.6,8.27605]
[1750116834747,3.2078,2572.9,2572.8,0.77699]
[1750116834941,6.26208824,2573.1,2573.0,0.77693]
[1750116835141,3.2078,2573.2,2573.1,0.7769]
[1750116835346,3.2078,2573.2,2573.1,2.1927]
[1750116835553,6.26208824,2573.4,2573.3,0.77684]
[1750116836042,6.26208824,2573.4,2573.3,8.27584]
[1750116836948,6.26208824,2573.4,2573.3,49.07584]
[1750116838051,6.44,2573.3,2572.4,3.07780428]
[1750116838345,9.46988824,2572.5,2571.6,8.22898428]
[1750116838551,6.26208824,2572.1,2572.0,0.77723]
[1750116838856,6.26208824,2572.1,2572.0,8.27523]
[1750116839647,6.26208824,2572.1,2572.0,9.78083]
[1750116839945,6.26208824,2572.1,2572.0,9.0036]
[1750116840340,6.26208824,2572.1,2571.9,1.4078]
[1750116840541,6.26208824,2572.1,2572.0,8.27523]
[1750116840750,3.2078,2572.2,2572.0,7.498]
[1750116840951,3.2078,2572.2,2572.1,2.2985]
[1750116841753,0.00582377,2572.3,2572.2,0.77717]
[1750116841946,0.00582377,2572.3,2572.2,2.29847]
[1750116842451,3.2078,2572.6,2572.5,0.77708]
[1750116842648,6.26208824,2572.7,2572.6,0.77705]
[1750116842848,9.46988824,2573.0,2572.6,1.5213]
[1750116843048,0.77697,2572.9,2572.7,7.499]
[1750116843251,10.24682824,2573.0,2572.7,8.27601]
[1750116843954,9.46988824,2573.0,2572.8,0.77698]
[1750116844154,9.46988824,2573.0,2572.7,8.276]
[1750116844355,10.24682824,2573.0,2572.8,0.77698]
[1750116844555,9.46988824,2573.0,2572.8,0.77698]
[1750116844750,0.78273377,2573.1,2573.0,0.77693]
[1750116844751,0.00582377,2573.1,2573.0,0.77693]
[1750116845853,0.00582377,2573.1,2573.0,7.498]
[1750116846156,0.00582377,2573.1,2573.0,8.27493]
[1750116846658,0.78272377,2573.1,2573.0,7.498]
[1750116847157,0.00582377,2573.1,2573.0,8.27493]
[1750116847458,0.78272377,2573.1,2573.0,7.498]
[1750116847852,0.00582377,2573.1,2572.6,1.5406]
[1750116848048,7.03905824,2572.9,2572.7,9.0148]
[1750116848256,7.03905824,2572.9,2572.5,0.77706]
[1750116848257,0.77701,2572.8,2572.5,0.77706]
[1750116848454,0.77701,2572.8,2572.6,7.498]
[1750116848455,3.2078,2572.7,2572.6,7.498]
[1750116848852,3.2078,2572.7,2572.5,0.77706]
[1750116849050,3.2078,2572.7,2572.6,8.31805]
[1750116849258,3.2078,2572.7,2572.6,7.541]
[1750116849455,3.2078,2572.7,2572.5,7.541]
[1750116849760,3.2078,2572.7,2571.8,44.77182377]
[1750116849761,1.4145,2572.6,2571.8,0.00582377]
[1750116849961,6.26208824,2571.9,2571.8,0.78310377]
[1750116850157,3.2078,2572.1,2572.0,0.77723]
[1750116850350,6.26208824,2572.5,2572.4,0.77711]
[1750116850659,6.26208824,2572.5,2572.4,8.31811]
[1750116851453,0.00582377,2573.1,2572.4,7.541]
[1750116851454,6.26208824,2572.8,2572.4,7.541]
[1750116851760,6.26208824,2572.8,2572.7,0.77702]
[1750116852255,0.77702,2572.7,2572.5,8.31807]
[1750116852463,6.26208824,2572.8,2572.7,0.77702]
[1750116852857,6.26208824,2572.8,2572.6,2.21153]
[1750116853058,3.2078,2572.7,2572.6,1.4345]
[1750116853259,3.2078,2572.7,2572.6,0.77705]
[1750116853563,9.46988824,2572.7,2572.6,2.28125]
[1750116853948,9.46988824,2572.7,2572.6,1.5042]
[1750116854152,9.46988824,2572.7,2572.6,2.28125]
[1750116854361,9.46988824,2572.7,2572.5,8.31807]
[1750116854660,0.77705,2572.6,2572.5,7.541]
[1750116854963,10.24691824,2572.7,2572.5,8.31808]
[1750116855151,9.46988824,2572.7,2572.5,8.31808]
[1750116855357,0.77705,2572.6,2572.5,7.541]
[1750116855564,10.24691824,2572.7,2572.5,7.541]
[1750116855859,0.77705,2572.6,2572.5,7.541]
[1750116856059,10.24692824,2572.7,2572.5,7.541]
[1750116856256,0.77705,2572.6,2572.5,7.541]
[1750116856455,0.77705,2572.6,2571.4,5.8305]
[1750116856456,1.9427,2572.5,2571.8,0.00582377]
[1750116856652,6.26208824,2571.9,2571.8,7.54682377]
[1750116856856,5.66289512,2571.9,2571.5,7.541]
[1750116857058,3.2078,2571.6,2571.5,7.541]
[1750116857266,9.64804512,2571.6,2571.5,7.541]
[1750116857567,0.77738,2571.5,2571.3,7.541]
[1750116857769,8.87069512,2571.6,2571.3,7.541]
[1750116857770,5.66289512,2571.4,2571.3,7.541]
[1750116858059,5.66289512,2571.4,2570.8,7.5717]
[1750116858060,0.77747,2571.2,2571.1,0.00582377]
[1750116858258,11.32579024,2571.4,2571.1,0.00582377]
[1750116858259,3.2078,2571.3,2571.1,0.00582377]
[1750116858970,7.08081534,2571.2,2571.1,0.00582377]
[1750116859156,0.77755,2571.0,2570.6,7.542]
[1750116859354,3.98535,2571.0,2570.6,0.77764]
[1750116859561,0.77756,2570.9,2570.7,7.542]
[1750116859754,3.98535,2571.0,2570.7,7.542]
[1750116859964,0.77758,2570.9,2570.7,7.542]
[1750116860263,6.30334534,2570.9,2570.7,7.542]
[1750116860457,6.30334534,2571.2,2570.5,1.4247]
[1750116860660,6.30334534,2570.9,2570.8,0.77757]
[1750116860858,6.30334534,2570.9,2570.5,1.4247]
[1750116861064,6.30334534,2570.9,2570.6,8.31963]
[1750116861262,10.28878534,2570.7,2570.6,7.542]
[1750116861468,10.28876534,2570.7,2570.6,7.542]
[1750116861653,10.28876534,2570.7,2570.4,44.77]
[1750116861654,0.77767,2570.6,2570.4,44.77]
[1750116861858,1.535,2570.6,2570.1,7.542]
[1750116862165,9.51114534,2570.3,2570.1,7.542]
[1750116862360,9.51114534,2570.3,2570.1,48.342]
[1750116862563,9.51114534,2570.3,2570.0,7.544]
[1750116862769,10.28890534,2570.3,2570.0,7.544]
[1750116862968,10.28890534,2570.3,2570.0,48.344]
[1750116863270,10.28890534,2570.3,2569.6,46.2229]
[1750116863271,9.51114534,2570.3,2569.8,7.544]
[1750116863563,9.51114534,2570.3,2569.6,46.2229]
[1750116863564,9.51114534,2570.0,2569.9,8.32186]
[1750116863755,9.51114534,2570.0,2569.9,7.544]
[1750116863955,9.51114534,2570.0,2569.9,8.32186]
[1750116864152,9.51114534,2570.0,2569.9,7.544]
[1750116864357,9.51114534,2570.0,2569.9,0.77786]
[1750116864558,9.51114534,2570.0,2569.9,7.544]
[1750116864963,9.51114534,2570.0,2569.9,8.32186]
[1750116865463,6.30918067,2570.3,2570.2,0.77777]
[1750116865856,6.30918067,2570.3,2570.2,8.32277]
[1750116868461,7.08692067,2570.3,2570.2,7.545]
[1750116868663,0.00583533,2570.3,2570.2,8.32277]
[1750116869463,0.00583533,2570.3,2569.8,4.5559]
[1750116869770,0.00583533,2570.3,2569.7,40.8]
[1750116869771,6.30334534,2570.0,2569.9,7.546]
[1750116870067,7.08117534,2570.0,2569.9,7.546]
[1750116870260,6.30334534,2570.0,2569.9,7.546]
[1750116870456,7.08117534,2570.0,2569.5,0.25475728]
[1750116870661,7.08117534,2570.0,2568.3,6.30334534]
[1750116870662,9.51114534,2569.6,2567.7,3.2078]
[1750116870863,6.30334534,2569.4,2569.1,3.2078]
[1750116871067,1.4271,2569.5,2569.1,3.2078]
[1750116871068,0.00583533,2569.5,2569.1,3.2078]
[1750116871265,0.00583533,2569.5,2569.4,0.77802]
[1750116871568,0.00583533,2569.5,2569.4,8.32502]
[1750116871864,0.00583533,2569.5,2569.2,4.6232]
[1750116872067,6.30334534,2569.4,2569.3,9.71572]
[1750116872370,6.30334534,2569.4,2569.3,0.77805]
[1750116873372,0.00583533,2569.5,2569.4,0.77802]
[1750116875162,0.00583533,2569.5,2569.4,8.32602]
[1750116875368,5.33e-06,2569.5,2569.4,13.32602]
[1750116876465,5.33e-06,2569.5,2569.4,54.12602]
[1750116876869,5.33e-06,2569.5,2569.4,57.33382]
[1750116877970,5.33e-06,2569.5,2569.4,85.09402]
[1750116881973,5.33e-06,2569.5,2569.4,51.19202]
[1750116882271,5.33e-06,2569.5,2569.4,85.12202]
[1750116883574,5.33e-06,2569.5,2569.4,80.12202]
[1750116884566,5.33e-06,2569.5,2569.4,46.19202]
[1750116884865,5.33e-06,2569.5,2569.4,80.06002]
[1750116885874,5.33e-06,2569.5,2569.4,53.86602]
[1750116886071,5.33e-06,2569.5,2569.4,80.02602]
[1750116887571,5.33e-06,2569.5,2569.4,52.45982]
[1750116888176,0.77798533,2569.5,2569.4,7.674]
[1750116888480,0.77805,2569.3,2569.2,0.00583533]
[1750116888671,9.22867393,2569.5,2569.4,0.77802]
[1750116888672,8.87660969,2569.5,2569.4,0.77802]
[1750116888870,5.66880969,2569.5,2569.4,8.45302]
[1750116889781,5.66880969,2569.5,2569.4,0.77802]
[1750116890074,5.66880969,2569.5,2569.2,0.00583533]
[1750116890280,8.87660969,2569.5,2569.4,0.77802]
[1750116890482,5.66880969,2569.5,2569.4,0.77802]
[1750116890681,5.66880969,2569.5,2569.4,2.15152]
[1750116890879,5.66880969,2569.5,2569.4,0.77802]
[1750116891083,5.66880969,2569.5,2569.2,0.00583533]
[1750116891280,5.66880969,2569.5,2569.3,7.675]
[1750116891281,0.77802,2569.4,2569.3,7.675]
[1750116892074,1.79844247,2569.4,2569.3,7.675]
[1750116892278,0.77802,2569.4,2569.3,7.675]
[1750116893773,0.77802,2569.4,2569.2,0.78390533]
[1750116893976,0.77804,2569.3,2569.2,0.00583533]
[1750116895075,1.79812512,2569.3,2569.2,0.00583533]
[1750116895679,6.79812512,2569.3,2569.2,0.00583533]
[1750116896497,8.06842512,2569.3,2569.2,0.00583533]
[1750116896679,3.06842512,2569.3,2569.2,0.00583533]
[1750116896985,7.04834,2569.3,2569.2,0.00583533]
[1750116897190,2.04834,2569.3,2569.2,0.00583533]
[1750116898786,7.04834,2569.3,2569.2,0.00583533]
[1750116899981,8.06869246,2569.3,2569.2,0.00583533]
[1750116900385,8.06869246,2569.3,2568.9,7.676]
[1750116900386,0.77814,2569.0,2568.9,7.676]
[1750116900683,9.65474436,2569.0,2568.9,7.676]
[1750116900888,0.77822,2568.8,2568.7,7.676]
[1750116901183,5.66880436,2568.8,2568.2,1.3545]
[1750116901384,5.66880436,2568.8,2568.3,8.45435]
[1750116901385,5.66880436,2568.4,2568.3,8.45435]
[1750116901684,5.66880436,2568.4,2568.3,7.676]
[1750116901887,1.2723,2568.9,2568.3,10.8838]
[1750116901888,3.2078,2568.8,2568.3,10.8838]
[1750116902090,0.77826,2568.6,2568.4,0.7783]
[1750116902392,5.66880436,2568.4,2568.3,8.45435]
[1750116902686,5.66880436,2568.4,2568.3,7.676]
[1750116902880,3.2078,2568.5,2568.4,0.77832]
[1750116903077,3.2078,2568.5,2567.9,42.74617]
[1750116903078,3.2078,2568.5,2567.8,7.676]
[1750116903278,5.66880436,2568.7,2568.4,3.2078]
[1750116903482,6.94110436,2568.9,2568.8,0.7782]
[1750116903791,6.94110436,2568.9,2568.7,0.77821]
[1750116903981,6.94110436,2568.9,2568.8,0.7782]
[1750116904288,6.94110436,2568.9,2568.7,0.77821]
[1750116904678,6.94110436,2568.9,2568.7,0.77822]
[1750116904679,9.07388436,2568.9,2568.7,0.77822]
[1750116904880,12.28168436,2568.9,2568.5,7.676]
[1750116905080,5.66880436,2568.6,2568.3,1.3091]
[1750116905280,6.44706436,2568.6,2568.4,8.45529]
[1750116905478,6.44706436,2568.6,2568.4,7.677]
[1750116905677,5.66880436,2568.6,2568.4,8.4553]
[1750116906191,9.65486436,2568.6,2568.5,7.677]
[1750116906382,8.87660436,2568.6,2568.5,8.45529]
[1750116906577,1.2723,2568.9,2568.8,0.7782]
[1750116906784,6.94110436,2568.9,2568.8,0.7782]
[1750116906980,6.94110436,2568.9,2568.8,8.4552]
[1750116907189,10.14890436,2568.9,2568.5,0.77828]
[1750116907386,1.2753,2568.8,2568.6,7.677]
[1750116907588,1.2753,2568.8,2568.7,0.77823]
[1750116907894,1.2753,2568.8,2568.5,7.677]
[1750116908584,8.87660436,2568.6,2568.2,7.677]
[1750116908780,8.87660436,2568.3,2568.2,8.45538]
[1750116909088,0.77843,2568.1,2567.9,49.25547]
[1750116909287,5.66880436,2568.0,2567.9,49.25547]
[1750116909482,5.66880436,2568.0,2567.9,0.77847]
[1750116909681,5.66880436,2568.0,2567.9,8.45547]
[1750116909882,0.7785,2567.8,2567.7,52.318]
[1750116910182,5.66880436,2567.8,2566.9,52.33]
[1750116910487,1.2675,2567.7,2567.6,0.77856]
[1750116910687,6.93630436,2567.7,2567.1,3.2078]
[1750116910881,3.2078,2567.8,2567.0,52.1534]
[1750116910882,5.66880436,2567.4,2567.2,1.3017]
[1750116911087,5.66880436,2567.4,2567.3,0.77865]
[1750116911286,3.2078,2568.1,2567.3,40.8]
[1750116911496,3.2078,2568.1,2567.7,0.77853]
[1750116911693,3.2078,2568.1,2568.0,0.77844]
[1750116912190,39.90060436,2568.1,2567.5,0.77858]
[1750116912391,5.66880436,2567.6,2567.1,3.9587]
[1750116912596,8.87660436,2567.3,2567.2,48.291]
[1750116912794,9.65526436,2567.3,2567.0,8.26973]
[1750116913090,9.65526436,2567.3,2567.0,7.491]
[1750116913091,8.87660436,2567.3,2567.0,7.491]
[1750116913483,0.77877,2566.9,2566.7,3.9587]
[1750116913688,9.65538436,2566.9,2566.8,7.492]
[1750116913894,8.87660436,2566.9,2566.8,7.492]
[1750116914099,9.65537436,2566.9,2566.8,7.492]
[1750116914392,13.87660436,2566.9,2566.5,40.8]
[1750116914594,8.87660436,2566.6,2566.5,40.8]
[1750116914799,8.87660436,2566.6,2566.4,45.61791]
[1750116914984,8.87660436,2566.6,2566.4,44.839]
[1750116915191,0.77889,2566.5,2566.4,52.331]
[1750116915600,9.65547436,2566.6,2566.4,44.839]
[1750116915790,8.87660436,2566.6,2566.4,44.839]
[1750116915987,3.2078,2566.6,2566.5,0.77889]